[Event "Mitropa Cup Open 2024"]
[Site "Apolda"]
[Date "2024.02.19"]
[Round "5.5"]
[White "Subelj, Jan"]
[Black "Sahidi, Samir"]
[Result "1-0"]
[ECO "C65"]
[WhiteElo "2512"]
[BlackElo "2478"]
[Annotator "TA"]
[PlyCount "147"]
[EventDate "2024.02.15"]
[EventType "team-tourn"]
[EventCountry "GER"]
[SourceTitle "playchess.com"]
[Source "ChessBase"]
[SourceQuality "1"]
[WhiteTeam "Slovenia"]
[BlackTeam "Slovakia"]
[WhiteTeamCountry "SLO"]
[BlackTeamCountry "SVK"]
[TimeControl "40/5400+30:1800+30"]

{[%evp 63,147,177,154,108,175,173,177,181,184,178,200,187,279,291,268,195,164,83,101,106,96,119,97,103,125,109,103,89,83,64,72,35,71,8,60,64,67,66,62,59,65,64,64,29,28,30,30,24,25,24,24,24,24,24,137,130,130,130,130,130,130,0,130,130,130,130,130,130,130,130,174,174,174,173,29966,29966,29967,29968,29968,29969,29969,29970,29970,29966,29969,29969]} 1. e4 {[%emt 0:00:18]} e5 {[%emt 0:00:15]} 2. Nf3 {[%emt 0:00:09]} Nc6 {[%emt 0:00:20]} 3. Bb5 {[%emt 0:00:16]} Nf6 {[%emt 0:00:24]} 4. d3 {[%emt 0:00:28]} Bc5 {[%emt 0:00:39]} 5. Nbd2 {[%emt 0:00:36]} d6 {[%emt 0:03:13]} 6. c3 {[%emt 0:01:53]} Bd7 {[%emt 0:03:27]} 7. O-O {[%emt 0:01:47]} a6 {[%emt 0:02:14]} 8. Ba4 {[%emt 0:00:40]} O-O {[%emt 0:02:10]} 9. h3 {[%emt 0:00:37]} Ba7 {[%emt 0:01:36]} 10. Re1 {[%emt 0:01:22]} Ne7 {[%emt 0:02:16]} 11. Bc2 {[%emt 0:02:29]} Ng6 {[%emt 0:01:10]} 12. d4 {[%emt 0:01:06]} Re8 {[%emt 0:02:12]} 13. Nf1 {[%emt 0:00:30]} Nh5 {[%emt 0:12:37]} 14. Be3 {[%emt 0:07:06]} Nhf4 {[%emt 0:02:03]} 15. Ng3 {[%emt 0:01:13]} Bc6 {[%emt 0:07:52]} 16. Nf5 {[%emt 0:04:39]} exd4 {[%emt 0:04:18]} 17. Bxd4 {[%emt 0:13:12]} Ne6 {[%emt 0:01:24]} 18. Bxa7 {[%emt 0:04:02]} Rxa7 {[%emt 0:00:09]} 19. N3d4 {[%emt 0:01:26]} Ne5 {[%emt 0:08:54]} 20. Qd2 {[%emt 0:11:35]} Bd7 {[%emt 0:07:40]} 21. f4 {[%emt 0:03:42]} Nc6 {[%emt 0:00:44]} 22. Nf3 {[%emt 0:01:20]} Nf8 {[%emt 0:02:25]} 23. g4 {[%emt 0:04:07]} Ra8 {[%emt 0:01:11]} 24. h4 {[%emt 0:01:07]} Ne7 {[%emt 0:07:48]} 25. h5 {[%emt 0:02:18]} Nxf5 {[%emt 0:02:31]} 26. gxf5 {[%emt 0:01:31]} Qf6 {[%emt 0:02:03]} 27. Re2 {[%emt 0:04:03]} Re7 {[%emt 0:02:32]} 28. Rg2 {[%emt 0:00:44]} Bc6 {[%emt 0:01:48]} 29. e5 {[%emt 0:02:35]} dxe5 {[%emt 0:00:33]} 30. fxe5 {[%emt 0:00:05]} Rxe5 {[%emt 0:00:10]} 31. Nxe5 {[%emt 0:00:14]} Qxe5 {[%emt 0:00:57]} 32. Re1 {[%emt 0:00:17]} Qf6 {[%emt 0:01:35]} 33. Rg4 {[%emt 0:00:29]} (33. Rg3 $142) 33... Rd8 {[%emt 0:01:04]} (33... h6 $16) 34. Qg5 $1 $18 {[%emt 0:00:21]} Qxg5 {[%emt 0:04:35]} 35. Rxg5 {[%emt 0:00:06]} h6 {[%emt 0:00:18]} 36. Rg3 {[%emt 0:00:48]} Nh7 {[%emt 0:02:35]} 37. Re7 {[%emt 0:04:52]} Rd2 {[%emt 0:03:41]} (37... Nf6 {is a better defense.}) 38. Bb3 $18 {[%emt 0:00:45]} Ng5 {[%emt 0:00:40]} 39. f6 {[%emt 0:00:15]} Rxb2 {[%emt 0:03:45] [#]} 40. fxg7 {[%emt 0:01:22]} ({Worse is} 40. Rxc7 Rb1+ (40... gxf6 41. Kf1 $11) 41. Kf2 Ne4+ (41... gxf6 $2 42. Bxf7+ Kf8 43. Bg6 $18) 42. Ke3 Re1+ (42... Nxg3 $2 43. Bxf7+ Kf8 44. fxg7+ Kxg7 45. Bg6+ Kf6 46. Bxb1 $18) 43. Kd3 (43. Kf4 Nxg3 44. Kxg3 Be8 $15) 43... Nxg3 $11) (40. Bxf7+ $6 Kf8 41. fxg7+ Kxg7 42. Rxc7 Kf6 $16) (40. Rxf7 $1 $18 gxf6 41. Rxc7+ (41. Rxf6+ Kh7 $18) 41... Kf8 42. Rd3) 40... Rb1+ {[%emt 0:02:46]} 41. Kf2 {[%emt 0:30:11]} Kxg7 {[%emt 0:06:09]} 42. Rxf7+ {[%emt 0:00:00]} ({Reject} 42. Bxf7 Rb2+ 43. Ke1 Kf8 44. Rxc7 Nxf7 45. Rc8+ Ke7 46. Rc7+ Bd7 $11) 42... Kh8 {[%emt 0:00:48]} 43. Rf8+ {[%emt 0:00:00]} ({Of course not} 43. Rxc7 $6 Ne4+ 44. Kg2 Nxg3+ 45. Kxg3 Rf1 $11) 43... Kg7 {[%emt 0:00:31]} 44. Rf4 {[%emt 0:00:00]} Rh1 {[%emt 0:02:16]} 45. Ke3 {[%emt 0:00:00]} Rxh5 {[%emt 0:03:08]} 46. Rf7+ {[%emt 0:00:00]} Kg6 {[%emt 0:00:26]} 47. Rxc7 {[%emt 0:00:00]} Kf6 {[%emt 0:00:44] [#]} 48. Bc4 {[%emt 0:00:00]} ({Better is} 48. Kd3 $1 $16) 48... Ne6 {[%emt 0:03:53]} (48... Rh2 $11) 49. Bxe6 $14 {[%emt 0:00:00]} Kxe6 {[%emt 0:00:42]} 50. Kd4 {[%emt 0:00:00]} Kd6 {[%emt 0:02:06]} 51. Rcg7 {[%emt 0:00:00]} Rd5+ {[%emt 0:00:13]} 52. Kc4 {[%emt 0:00:00]} Rc5+ {[%emt 0:00:18]} 53. Kd3 {[%emt 0:00:00]} Ra5 {[%emt 0:01:12]} 54. Rh3 {[%emt 0:00:00]} Rxa2 {[%emt 0:02:05]} 55. Rh5 {[%emt 0:00:00]} Rf2 {[%emt 0:01:58]} 56. c4 {[%emt 0:00:00]} Rf3+ {[%emt 0:02:58]} 57. Kd4 {[%emt 0:00:00]} Rf4+ {[%emt 0:00:08]} 58. Kc3 {[%emt 0:00:00]} Bf3 {[%emt 0:02:51]} (58... Rf6 $11 {keeps the balance.}) 59. Rxh6+ $16 {[%emt 0:00:00]} Ke5 {[%emt 0:01:52]} 60. Re7+ {[%emt 0:00:00]} Kf5 {[%emt 0:00:06]} 61. Rf7+ {[%emt 0:00:00]} Ke5 {[%emt 0:00:41]} 62. Re7+ {[%emt 0:00:00]} Kf5 {[%emt 0:00:02]} 63. Ree6 {[%emt 0:00:00]} Bc6 {[%emt 0:01:42]} 64. Rhf6+ {[%emt 0:00:00]} Kg5 {[%emt 0:00:18]} 65. Rxf4 {[%emt 0:00:00]} Kxf4 {[%emt 0:00:06]} 66. Kb4 {[%emt 0:00:00]} Kf5 {[%emt 0:01:09]} 67. Re7 {[%emt 0:00:00]} Kf6 {[%emt 0:00:30]} 68. Re1 {[%emt 0:00:00]} Kf7 $2 {[%emt 0:03:00]} (68... Kf5 $18 69. c5 Be4) 69. Ka5 {[%emt 0:00:00]} Bg2 {[%emt 0:00:36]} 70. Kb6 {[%emt 0:00:00]} Bc6 {[%emt 0:00:08]} 71. c5 {[%emt 0:00:00]} Bd5 {[%emt 0:00:23]} 72. Re5 {[%emt 0:00:00]} Bc6 {[%emt 0:00:09]} 73. Re3 {[%emt 0:00:37]} Bd5 {[%emt 0:00:28]} 74. Rh3 {[%emt 0:00:14]} 1-0

[Event "Mitropa Cup Open 2024"]
[Site "Apolda"]
[Date "2024.02.19"]
[Round "5.6"]
[White "Haring, Filip"]
[Black "Goroshkov, Maksym"]
[Result "0-1"]
[ECO "C24"]
[WhiteElo "2432"]
[BlackElo "2338"]
[Annotator "RC"]
[PlyCount "112"]
[EventDate "2024.02.15"]
[EventType "team-tourn"]
[EventCountry "GER"]
[SourceTitle "playchess.com"]
[Source "ChessBase"]
[SourceQuality "1"]
[WhiteTeam "Slovakia"]
[BlackTeam "Slovenia"]
[WhiteTeamCountry "SVK"]
[BlackTeamCountry "SLO"]
[TimeControl "40/5400+30:1800+30"]

1. e4 {[%emt 0:00:08]} e5 {[%emt 0:00:22]} 2. Nf3 {[%emt 0:00:07]} Nc6 {[%emt 0:00:06]} 3. Bc4 {[%emt 0:00:36]} Nf6 {[%emt 0:01:48]} 4. d3 {[%emt 0:00:12]} d5 {[%emt 0:01:32]} 5. exd5 {[%emt 0:00:18]} Nxd5 {[%emt 0:00:03]} 6. O-O {[%emt 0:00:16]} Nb6 {[%emt 0:00:53]} 7. Bb3 {[%emt 0:08:13]} Bg4 {[%emt 0:00:17]} 8. h3 {[%emt 0:01:27]} Bh5 {[%emt 0:00:42]} 9. Re1 {[%emt 0:01:59]} Qe7 {[%emt 0:00:09]} 10. a4 {[%emt 0:07:48]} a5 {[%emt 0:01:21]} 11. Nc3 {[%emt 0:08:52]} f6 {[%emt 0:04:33]} 12. Be3 {[%emt 0:03:33]} O-O-O {[%emt 0:02:54]} 13. Ne4 {[%emt 0:03:41]} g5 {[%emt 0:02:56]} 14. c3 {[%emt 0:10:47]} Bg6 {[%emt 0:10:30]} 15. Nfd2 {[%emt 0:11:29]} Nd5 {[%emt 0:08:02]} 16. d4 {[%emt 0:09:13]} Nxe3 {[%emt 0:06:45]} 17. fxe3 {[%emt 0:00:03]} Qg7 {[%emt 0:06:19]} 18. Qf3 {[%emt 0:03:31]} Be7 {[%emt 0:00:53]} 19. Be6+ {[%emt 0:01:04]} Kb8 {[%emt 0:00:05]} 20. Nb3 {[%emt 0:06:15]} f5 {[%emt 0:02:40]} 21. Nec5 {[%emt 0:00:03]} g4 {[%emt 0:06:46]} 22. hxg4 {[%emt 0:05:10]} fxg4 {[%emt 0:00:13]} 23. Bxg4 {[%emt 0:00:57]} Bf7 {[%emt 0:05:51]} 24. Ne6 {[%emt 0:06:31]} Bxe6 {[%emt 0:01:23]} 25. Bxe6 {[%emt 0:00:02]} Rhf8 {[%emt 0:00:39]} 26. Qg4 {[%emt 0:00:50]} Qh6 {[%emt 0:00:28]} 27. Qh3 {[%emt 0:01:55]} Qg6 {[%emt 0:03:50]} 28. Nd2 {[%emt 0:03:42]} Rf6 {[%emt 0:01:01]} 29. Bb3 {[%emt 0:02:58]} Rdf8 {[%emt 0:01:21]} 30. Rf1 {[%emt 0:00:29]} Qd3 {[%emt 0:00:42]} 31. Rad1 {[%emt 0:02:32]} Rxf1+ {[%emt 0:02:02]} 32. Nxf1 {[%emt 0:00:08]} Qe2 {[%emt 0:00:04]} 33. Qg3 {[%emt 0:01:33]} Qxb2 {[%emt 0:00:33]} 34. Bd5 {[%emt 0:00:05]} Qxc3 {[%emt 0:00:54]} 35. Qg4 {[%emt 0:01:00]} exd4 {[%emt 0:00:23]} 36. exd4 {[%emt 0:00:22]} Nxd4 {[%emt 0:00:51]} 37. Kh1 {[%emt 0:00:35]} Nc6 {[%emt 0:02:48]} 38. Be4 {[%emt 0:00:30]} Qf6 {[%emt 0:00:39]} 39. Nh2 {[%emt 0:00:27]} Qh6 {[%emt 0:01:30]} 40. Qh3 {[%emt 0:00:27]} Qxh3 {[%emt 0:00:53]} 41. gxh3 {[%emt 0:30:06]} Rf4 {[%emt 0:31:28]} 42. Bc2 {[%emt 0:00:00]} Rc4 {[%emt 0:00:00]} 43. Rd2 {[%emt 0:00:00]} Bg5 {[%emt 0:00:00]} 44. Rg2 {[%emt 0:00:00]} h6 {[%emt 0:00:00]} 45. Nf3 {[%emt 0:00:00]} Nb4 {[%emt 0:00:00]} 46. Bf5 {[%emt 0:00:00]} Rf4 {[%emt 0:00:00]} 47. Bg4 {[%emt 0:00:00]} Nd5 {[%emt 0:00:00]} 48. Bh5 {[%emt 0:00:00]} Rxa4 {[%emt 0:00:00]} 49. Nxg5 {[%emt 0:00:00]} Nf4 {[%emt 0:00:00]} 50. Nf3 {[%emt 0:00:00]} Nxh5 {[%emt 0:00:00]} 51. Rg6 {[%emt 0:00:00]} Ra3 {[%emt 0:00:00]} 52. Ng1 {[%emt 0:00:00]} Ng3+ {[%emt 0:00:00]} 53. Kg2 {[%emt 0:00:00]} Nf5 {[%emt 0:00:00]} 54. Nf3 {[%emt 0:00:00]} a4 {[%emt 0:00:00]} 55. Rf6 {[%emt 0:00:00]} Ra2+ {[%emt 0:00:00]} 56. Kg1 {[%emt 0:00:00]} Nd6 {[%emt 0:00:00]} 0-1

[Event "Mitropa Cup Open 2024"]
[Site "Apolda"]
[Date "2024.02.19"]
[Round "5.7"]
[White "Lavrencic, Matic"]
[Black "Bochnicka, Vladimir"]
[Result "1/2-1/2"]
[ECO "B30"]
[WhiteElo "2299"]
[BlackElo "2398"]
[Annotator "RC"]
[PlyCount "62"]
[EventDate "2024.02.15"]
[EventType "team-tourn"]
[EventCountry "GER"]
[SourceTitle "playchess.com"]
[Source "ChessBase"]
[SourceQuality "1"]
[WhiteTeam "Slovenia"]
[BlackTeam "Slovakia"]
[WhiteTeamCountry "SLO"]
[BlackTeamCountry "SVK"]
[TimeControl "40/5400+30:1800+30"]

1. e4 {[%emt 0:00:21]} c5 {[%emt 0:00:11]} 2. Nf3 {[%emt 0:00:16]} Nc6 {[%emt 0:00:09]} 3. Bb5 {[%emt 0:00:09]} e6 {[%emt 0:00:11]} 4. O-O {[%emt 0:00:10]} Nge7 {[%emt 0:00:08]} 5. c3 {[%emt 0:00:08]} a6 {[%emt 0:02:13]} 6. Ba4 {[%emt 0:00:26]} b5 {[%emt 0:00:21]} 7. Bc2 {[%emt 0:00:25]} d5 {[%emt 0:04:39]} 8. d4 {[%emt 0:16:23]} cxd4 {[%emt 0:07:18]} 9. Nxd4 {[%emt 0:02:40]} Nxd4 {[%emt 0:00:22]} 10. cxd4 {[%emt 0:08:37]} dxe4 {[%emt 0:08:39]} 11. Bxe4 {[%emt 0:00:30]} Nd5 {[%emt 0:00:31]} 12. Nc3 {[%emt 0:03:51]} Bb7 {[%emt 0:04:36]} 13. Qf3 {[%emt 0:05:33]} Be7 {[%emt 0:07:35]} 14. Nxd5 {[%emt 0:01:13]} Bxd5 {[%emt 0:01:40]} 15. Bxd5 {[%emt 0:00:27]} Qxd5 {[%emt 0:00:43]} 16. Qxd5 {[%emt 0:00:47]} exd5 {[%emt 0:00:10]} 17. Be3 {[%emt 0:00:20]} Kd7 {[%emt 0:11:31]} 18. Rfc1 {[%emt 0:00:10]} Rhc8 {[%emt 0:01:00]} 19. Kf1 {[%emt 0:01:22]} Bd6 {[%emt 0:03:52]} 20. g3 {[%emt 0:01:58]} a5 {[%emt 0:11:48]} 21. Rxc8 {[%emt 0:01:28]} Rxc8 {[%emt 0:00:15]} 22. Rc1 {[%emt 0:00:07]} Re8 {[%emt 0:18:04]} 23. Ke2 {[%emt 0:00:58]} h6 {[%emt 0:00:29]} 24. Kd3 {[%emt 0:01:29]} g5 {[%emt 0:01:15]} 25. h4 {[%emt 0:16:04]} gxh4 {[%emt 0:05:52]} 26. gxh4 {[%emt 0:00:10]} Re4 {[%emt 0:01:10]} 27. Bxh6 {[%emt 0:00:37]} Rxh4 {[%emt 0:00:07]} 28. Be3 {[%emt 0:00:17]} a4 {[%emt 0:01:46]} 29. Rg1 {[%emt 0:00:52]} Rh8 {[%emt 0:01:45]} 30. Ke2 {[%emt 0:01:21]} Ke6 {[%emt 0:00:13]} 31. Kd3 {[%emt 0:02:01]} Kd7 {[%emt 0:03:00]} 1/2-1/2

[Event "Mitropa Cup Open 2024"]
[Site "Apolda"]
[Date "2024.02.19"]
[Round "5.9"]
[White "Vykouk, Jan"]
[Black "Georgiadis, Nico"]
[Result "1-0"]
[ECO "B90"]
[WhiteElo "2493"]
[BlackElo "2547"]
[Annotator "TA"]
[PlyCount "75"]
[EventDate "2024.02.15"]
[EventType "team-tourn"]
[EventCountry "GER"]
[SourceTitle "playchess.com"]
[Source "ChessBase"]
[SourceQuality "1"]
[WhiteTeam "Czech Republic"]
[BlackTeam "Switzerland"]
[WhiteTeamCountry "CZE"]
[BlackTeamCountry "SUI"]
[TimeControl "40/5400+30:1800+30"]

{[%evp 18,75,0,0,8,10,38,3,25,10,31,32,26,38,29,0,0,0,0,0,9,-28,-22,-67,-50,-31,-48,-48,-22,-54,-43,-50,-55,-44,-35,-46,0,-25,0,0,0,0,0,0,0,-55,0,0,0,0,0,0,5010,0,2766,2454,3082,1745,1508,1543]} 1. e4 {[%emt 0:00:03]} c5 {[%emt 0:00:08]} 2. Nf3 {[%emt 0:00:06]} d6 {[%emt 0:00:06]} 3. d4 {[%emt 0:00:05]} cxd4 {[%emt 0:00:07]} 4. Nxd4 {[%emt 0:00:05]} Nf6 {[%emt 0:00:10]} 5. Nc3 {[%emt 0:00:05]} a6 {[%emt 0:00:05]} 6. Be3 {[%emt 0:00:16]} e5 {[%emt 0:00:28]} 7. Nb3 {[%emt 0:00:08]} Be6 {[%emt 0:00:12]} 8. f3 {[%emt 0:00:19]} Nbd7 {[%emt 0:00:42]} 9. Nd5 {[%emt 0:04:34]} Bxd5 {[%emt 0:08:58]} 10. exd5 {[%emt 0:00:05]} Rc8 {[%emt 0:03:19]} 11. c4 {[%emt 0:01:29]} a5 {[%emt 0:02:24][%cal Ob7b5]} 12. Rc1 {[%emt 0:01:10]} b6 {[%emt 0:07:47] The position is equal.} 13. g4 {[%emt 0:01:35]} g6 {[%emt 0:05:28]} 14. h4 {[%emt 0:04:33][%cal Bh2h4,Bh4h5][%mdl 32]} Bg7 {[%emt 0:16:12]} 15. h5 {[%emt 0:01:13]} O-O {[%emt 0:00:38]} 16. Be2 {[%emt 0:03:07]} (16. h6 $5 Bh8 $8 17. Bh3 $14) 16... Qe7 {[%emt 0:03:02]} 17. a4 {[%emt 0:03:45]} (17. h6 $5 Bh8 $8 18. Kf1 $11) 17... Nc5 {[%emt 0:02:44]} 18. Nxc5 {[%emt 0:00:28]} bxc5 {[%emt 0:06:06]} 19. Rc3 {[%emt 0:03:25]} Rb8 {[%emt 0:01:13]} 20. Rb3 {[%emt 0:00:07]} Rxb3 {[%emt 0:03:56]} 21. Qxb3 {[%emt 0:00:06]} e4 {[%emt 0:01:59] aiming for ...exf3.} 22. f4 {[%emt 0:01:16]} Nd7 {[%emt 0:00:27] Strongly threatening ...Rb8.} 23. Qc2 {[%emt 0:04:46]} Rb8 {[%emt 0:13:20]} 24. b3 {[%emt 0:00:08]} Bd4 {[%emt 0:00:59]} 25. Bc1 {[%emt 0:09:28]} Re8 {[%emt 0:05:33]} 26. Kd1 {[%emt 0:03:08]} Nb8 {[%emt 0:03:05]} (26... e3 {looks sharper.} 27. g5 Nb8 28. Ba3 Na6) 27. Bd2 {[%emt 0:00:13]} Qd8 {[%emt 0:02:29]} 28. hxg6 {[%emt 0:01:34]} hxg6 {[%emt 0:00:23]} 29. f5 {[%emt 0:00:35]} g5 {[%emt 0:03:58]} 30. Rh5 {[%emt 0:02:13]} e3 {[%emt 0:03:30]} 31. Be1 {[%emt 0:00:58]} ({White should play} 31. f6 $1 $11 Bxf6 32. Be1 (32. Qh7+ Kf8 $11)) 31... Na6 {[%emt 0:00:14]} ({Black should try} 31... Bf6 $1 $15) 32. f6 $36 {[%emt 0:04:48][%mdl 2048] Black is under pressure.} Bxf6 {[%emt 0:01:43]} 33. Qf5 {[%emt 0:00:09]} Nb4 {[%emt 0:00:24]} 34. Bg3 {[%emt 0:03:51]} Qe7 $2 {[%emt 0:04:13][%mdl 8192]} (34... Na2 $11) 35. Qh7+ $18 {[%emt 0:02:32]} Kf8 {[%emt 0:00:02] [#]} 36. Rxg5 $3 {[%emt 0:01:13][%csl Gh7][%cal Rg5g8][%mdl 512] White is clearly winning.} Qd7 {[%emt 0:00:08]} (36... Qd8 37. Qh6+) 37. Qh6+ {[%emt 0:05:16]} Ke7 {[%emt 0:00:04]} 38. Rf5 {[%emt 0:00:20] Weighted Error Value: White=0.10 (very precise) /Black=0.12 (very precise) .  Loses game:     	---       	Black=2      Mistake:       	White=1     	Black=1      Inaccurate:     	White=3     	Black=2      OK:         	White=13    	Black=9      Best:        	White=1     	Black=1} 1-0

[Event "Mitropa Cup Open 2024"]
[Site "Apolda"]
[Date "2024.02.19"]
[Round "5.10"]
[White "Bogner, Sebastian"]
[Black "Kraus, Tomas"]
[Result "1-0"]
[ECO "D02"]
[WhiteElo "2538"]
[BlackElo "2484"]
[Annotator "TA"]
[PlyCount "80"]
[EventDate "2024.02.15"]
[EventType "team-tourn"]
[EventCountry "GER"]
[SourceTitle "playchess.com"]
[Source "ChessBase"]
[SourceQuality "1"]
[WhiteTeam "Switzerland"]
[BlackTeam "Czech Republic"]
[WhiteTeamCountry "SUI"]
[BlackTeamCountry "CZE"]
[TimeControl "40/5400+30:1800+30"]

{[%evp 9,80,24,34,34,35,38,38,32,51,49,37,38,40,24,20,25,28,22,25,18,20,14,17,32,20,14,33,27,14,3,16,12,20,12,42,39,37,0,32,16,8,0,0,0,0,0,0,0,0,0,0,0,29,30,30,8,178,179,186,175,178,185,205,145,246,229,344,355,334,340,367,349,456]} 1. Nf3 {[%emt 0:00:04]} d5 {[%emt 0:00:50]} 2. g3 {[%emt 0:00:05]} Nd7 {[%emt 0:05:38]} 3. d4 {[%emt 0:00:40]} Nb6 {[%emt 0:01:12]} 4. Nc3 {[%emt 0:00:30]} Nf6 {[%emt 0:05:44]} 5. Bg2 {[%emt 0:00:26]} Bf5 {[%emt 0:00:55]} 6. Nh4 {[%emt 0:00:33]} e6 {[%emt 0:01:23]} 7. Nxf5 {[%emt 0:00:40]} exf5 {[%emt 0:00:06]} 8. O-O {[%emt 0:02:53] White is slightly better.} Be7 {[%emt 0:05:51]} 9. Qd3 {[%emt 0:00:44]} g6 {[%emt 0:02:36]} 10. a4 {[%emt 0:13:06] And now a5 would win.} a5 {[%emt 0:03:49]} 11. f3 {[%emt 0:07:08]} O-O {[%emt 0:06:14]} 12. e4 {[%emt 0:00:35]} fxe4 {[%emt 0:02:26]} 13. fxe4 {[%emt 0:00:07]} dxe4 {[%emt 0:00:44]} 14. Nxe4 {[%emt 0:00:15]} Nxe4 {[%emt 0:05:37]} 15. Bxe4 {[%emt 0:02:14]} Bf6 {[%emt 0:03:27]} 16. c3 {[%emt 0:18:23]} c6 {[%emt 0:04:22]} 17. h4 {[%emt 0:02:00][%cal Bh2h4,Bh4h5][%mdl 32]} Bg7 {[%emt 0:05:46] [#]} 18. h5 $1 {[%emt 0:05:05]} Qd7 {[%emt 0:06:12]} 19. Kg2 {[%emt 0:07:09]} (19. Qf3 {with more complications.} Rae8 20. Bc2 Re6 21. Bg5) 19... Rae8 {[%emt 0:04:40]} 20. Bf3 {[%emt 0:04:37]} (20. h6 $5 Bh8 $8 21. Bf3 $14) 20... Qe6 {[%emt 0:09:30]} 21. Rf2 {[%emt 0:02:27]} Qb3 {[%emt 0:07:15]} 22. Bd1 {[%emt 0:03:16]} Qd5+ {[%emt 0:02:11]} 23. Bf3 {[%emt 0:00:05]} Qb3 {[%emt 0:00:04]} 24. Qc2 {[%emt 0:08:35]} Qe6 {[%emt 0:03:55]} 25. Re2 {[%emt 0:01:07]} Qd7 {[%emt 0:00:43]} 26. Be3 {[%emt 0:01:28]} Nd5 {[%emt 0:01:08]} 27. Bf2 {[%emt 0:05:08]} Rxe2 {[%emt 0:00:36]} 28. Qxe2 {[%emt 0:00:01]} Re8 {[%emt 0:00:27]} 29. Qd2 {[%emt 0:00:09]} Qf5 {[%emt 0:03:54]} 30. hxg6 {[%emt 0:02:51]} Qxg6 {[%emt 0:01:41]} 31. Rh1 {[%emt 0:00:51]} Nf6 {[%emt 0:01:19]} 32. Re1 {[%emt 0:02:24]} Ne4 $2 {[%emt 0:01:34] [#] This costs Black the game.} (32... Rxe1 $11 33. Qxe1 (33. Bxe1 Nd5 $11) 33... Bf8) 33. Qc2 $18 {[%emt 0:01:35]} f5 {[%emt 0:01:28]} 34. Qb3+ {[%emt 0:00:34]} Kh8 {[%emt 0:01:09]} 35. Qxb7 {[%emt 0:00:22]} Rf8 {[%emt 0:02:19]} 36. Qe7 {[%emt 0:01:45]} Nxf2 {[%emt 0:01:12]} (36... Ng5 $16 {was worth a try.}) 37. Re6 {[%emt 0:00:51] Active counter play!} Qf7 {[%emt 0:00:30]} (37... Rf6 $142 38. Rxf6 Qxf6 39. Qxf6 Bxf6) 38. Qxf7 {[%emt 0:00:35]} Rxf7 {[%emt 0:00:01]} 39. Kxf2 {[%emt 0:00:01]} f4 {[%emt 0:00:50]} 40. g4 {[%emt 0:00:56]} ({But not} 40. Bxc6 fxg3+ 41. Kxg3 Rf6 42. Re8+ Rf8 $18) 40... h5 {[%emt 0:00:36] Weighted Error Value: White=0.08 (flawless) /Black=0.19 (very precise) .  Loses game:     	---       	Black=1      Mistake:       	---       	Black=2      Inaccurate:     	---       	Black=3      OK:         	White=13    	Black=14     Best:        	White=2     	Black=1} 1-0

[Event "Mitropa Cup Open 2024"]
[Site "Apolda"]
[Date "2024.02.19"]
[Round "5.11"]
[White "Stalmach, Richard"]
[Black "Fecker, Noah"]
[Result "1/2-1/2"]
[ECO "D37"]
[WhiteElo "2433"]
[BlackElo "2397"]
[Annotator "TA"]
[PlyCount "61"]
[EventDate "2024.02.15"]
[EventType "team-tourn"]
[EventCountry "GER"]
[SourceTitle "playchess.com"]
[Source "ChessBase"]
[SourceQuality "1"]
[WhiteTeam "Czech Republic"]
[BlackTeam "Switzerland"]
[WhiteTeamCountry "CZE"]
[BlackTeamCountry "SUI"]
[TimeControl "40/5400+30:1800+30"]

{[%evp 9,61,26,30,13,24,35,50,35,47,9,13,-12,-15,-13,-25,-18,-20,-10,-10,-29,0,0,0,0,0,-14,-15,-11,-12,-13,-16,-10,-9,-12,-9,-20,0,0,0,-22,0,-18,-4,-10,0,-22,0,-5,0,-18,0,-10,0,-46]} 1. d4 {[%emt 0:00:05]} d5 {[%emt 0:00:08]} 2. c4 {[%emt 0:00:08]} e6 {[%emt 0:00:04]} 3. Nf3 {[%emt 0:01:20]} Nf6 {[%emt 0:00:29]} 4. Nc3 {[%emt 0:00:13]} a6 {[%emt 0:00:24]} 5. cxd5 {[%emt 0:00:31]} exd5 {[%emt 0:00:07]} 6. Qb3 {[%emt 0:02:29][%cal Oe2e4]} c5 {[%emt 0:06:04]} 7. Bg5 {[%emt 0:02:54]} Nc6 {[%emt 0:10:38]} 8. Bxf6 {[%emt 0:10:14] White is slightly better.} gxf6 {[%emt 0:00:06]} 9. Qxd5 {[%emt 0:04:54]} Qb6 $1 {[%emt 0:07:17]} 10. Qb3 {[%emt 0:29:36]} Qxb3 {[%emt 0:02:38]} 11. axb3 {[%emt 0:00:04]} Nxd4 {[%emt 0:12:08]} 12. Nxd4 {[%emt 0:07:42]} cxd4 {[%emt 0:00:06]} 13. Nd5 {[%emt 0:00:07] Prevents Bb4+} Be6 {[%emt 0:03:37]} 14. e4 {[%emt 0:00:04]} Bxd5 {[%emt 0:08:32]} 15. exd5 {[%emt 0:00:05] The position is equal.} Bb4+ {[%emt 0:00:48]} 16. Kd1 {[%emt 0:00:04]} Rd8 {[%emt 0:02:17]} 17. Bc4 {[%emt 0:00:03] [#]} d3 $1 {[%emt 0:03:48]} 18. Bxd3 {[%emt 0:01:23]} Rxd5 {[%emt 0:00:10]} 19. Ke2 {[%emt 0:00:15]} O-O {[%emt 0:00:31]} 20. Rhd1 {[%emt 0:00:46][%cal Od3h7] Bxh7+! would now be deadly.} Re8+ {[%emt 0:00:12]} 21. Kf1 {[%emt 0:08:09][%cal Od3h7] [#] aiming for Bxh7+!} Red8 {[%emt 0:00:34]} 22. Ke2 {[%emt 0:02:51]} Re8+ {[%emt 0:00:44]} 23. Kf1 {[%emt 0:00:11][%cal Od3h7] Black must now prevent Bxh7+!} Red8 {[%emt 0:00:08]} 24. Ke2 {[%emt 0:00:05]} Kg7 {[%emt 0:01:23]} 25. Rac1 {[%emt 0:28:47]} Re8+ {[%emt 0:40:07]} 26. Kf3 {[%emt 0:00:30]} Red8 {[%emt 0:00:00]} 27. Ke2 {[%emt 0:00:00]} Re8+ {[%emt 0:00:00]} 28. Kf3 {[%emt 0:01:00]} Red8 {[%emt 0:01:30]} 29. Ke2 {[%emt 0:00:30]} Re5+ {[%emt 0:00:30]} 30. Kf3 {[%emt 0:00:30]} Red5 {[%emt 0:00:00]} 31. Ke4 {[%emt 0:00:30] Weighted Error Value: White=0.08 (flawless) /Black=0.08 (flawless) .  Mistake:       	White=1     	---        Inaccurate:     	White=1     	Black=1      OK:         	White=13    	Black=10     Strong:       	---       	Black=1} (31. Ke2 $11) 1/2-1/2